bitfinex/quotes_SOLUSD_20240703
["timestamp","ask_amount","ask_price","bid_price","bid_amount"]
[1720009239668,15.8077,142.86,142.69,20.0]
[1720009239883,15.8077,142.85,142.69,34.6066]
[1720009240294,15.8077,142.85,142.7,0.34]
[1720009241189,20.0,142.84,142.7,0.34]
[1720009241495,15.3865,142.83,142.7,0.34]
[1720009241696,20.0,142.82,142.7,0.34]
[1720009242180,6.0774,142.81,142.7,0.34]
[1720009242363,6.0774,142.81,142.7,0.17]
[1720009242568,6.0774,142.81,142.68,20.95]
[1720009242792,16.5895,142.8,142.69,20.0]
[1720009243176,16.4195,142.8,142.69,40.95]
[1720009243693,16.4195,142.8,142.71,20.95]
[1720009244003,6.0774,142.81,142.73,20.95]
[1720009244178,6.0774,142.81,142.75,20.95]
[1720009244377,6.0774,142.81,142.76,1.0722245]
[1720009244698,6.0774,142.81,142.77,0.73217321]
[1720009244892,15.8234,142.84,142.77,21.68217321]
[1720009245398,15.8234,142.88,142.78,41.29]
[1720009245602,15.8234,142.88,142.78,241.29]
[1720009246021,15.8234,142.88,142.78,41.29]
[1720009246175,15.8234,142.88,142.78,141.29]
[1720009246515,15.8234,142.88,142.81,20.95]
[1720009246667,15.8234,142.88,142.82,0.34]
[1720009246872,15.8234,142.88,142.82,0.17]
[1720009247670,15.8234,142.88,142.82,0.34]
[1720009249774,15.8234,142.88,142.82,0.17]
[1720009250496,15.8234,142.88,142.82,0.90706756]
[1720009251005,15.8234,142.88,142.77,5.08678787]
[1720009251205,15.8234,142.88,142.75,21.06]
[1720009252009,6.6208,142.87,142.75,5.22221447]
[1720009252197,0.34,142.86,142.73,232.6045711]
[1720009252570,0.34,142.86,142.73,237.84387193]
[1720009253379,20.34,142.86,142.73,232.6045711]
[1720009254101,6.0924,142.84,142.69,21.06]
[1720009254407,0.34,142.83,142.69,21.06]
[1720009254613,0.34,142.83,142.69,26.35804305]
[1720009254791,0.34,142.83,142.69,5.29804305]
[1720009255105,0.34,142.83,142.67,232.6045711]
[1720009255106,0.34,142.83,142.68,21.06]
[1720009255472,0.34,142.83,142.69,41.06]
[1720009256197,6.0924,142.84,142.71,21.06]
[1720009256385,6.0924,142.84,142.73,21.06]
[1720009256584,6.0924,142.84,142.74,41.06]
[1720009256913,6.0924,142.84,142.75,0.34]
[1720009262309,6.0924,142.84,142.75,5.13547006]
[1720009262522,6.0924,142.84,142.68,106.2584]
[1720009262802,6.0924,142.84,142.68,111.52596052]
[1720009263209,6.0924,142.84,142.68,105.26756052]
[1720009263504,16.5365,142.83,142.69,21.06]
[1720009263680,16.3665,142.83,142.69,21.06]
[1720009263880,16.3665,142.83,142.71,21.06]
[1720009264315,16.3665,142.83,142.73,21.06]
[1720009264907,16.3665,142.83,142.72,0.17]
[1720009265209,16.3665,142.83,142.72,41.23]
[1720009265791,16.3665,142.83,142.72,141.23]
[1720009266294,16.3665,142.83,142.73,0.17]
[1720009267591,16.3665,142.83,142.75,21.06]
[1720009267785,16.3665,142.83,142.77,21.06]
[1720009267992,16.3665,142.83,142.78,20.34]
[1720009268492,16.3665,142.83,142.78,41.4]
[1720009270611,21.9937,142.87,142.78,41.4]
[1720009270791,21.9937,142.87,142.78,78.51]
[1720009271684,21.9937,142.87,142.8,21.06]
[1720009272013,21.9937,142.87,142.82,21.06]
[1720009272196,21.9937,142.87,142.83,0.34]
[1720009273884,37.11,143.01,142.83,0.34]
[1720009274113,5.10643212,143.02,142.83,0.34]
[1720009274114,22.2451,142.91,142.83,41.4]
[1720009276408,22.2451,142.91,142.83,46.52813339]
[1720009276785,22.2451,142.91,142.78,37.11]
[1720009276987,22.2451,142.91,142.79,30.0]
[1720009277206,22.2451,142.91,142.8,20.0]
[1720009277405,22.2451,142.91,142.79,120.0]
[1720009277711,22.2451,142.91,142.8,100.0]
[1720009277914,22.2451,142.91,142.81,41.06]
[1720009278293,22.2451,142.91,142.82,0.34]
[1720009280315,22.2451,142.91,142.83,21.06]
[1720009280499,22.2451,142.91,142.85,21.06]
[1720009280697,0.8123711,143.03,142.87,21.06]
[1720009280920,0.8123711,143.03,142.88,0.34]
[1720009282027,0.8123711,143.03,142.86,20.0]
[1720009282200,6.89028666,143.03,142.87,0.17]
[1720009282521,6.07791556,143.02,142.87,0.17]
[1720009282700,6.07791556,143.02,142.86,0.17]
[1720009282896,6.07791556,143.02,142.85,25.29101176]
[1720009285119,20.0,142.96,142.86,0.34]
[1720009286024,6.1964,142.97,142.86,0.34]
[1720009289025,6.1964,142.97,142.87,21.06]
[1720009289227,6.1964,142.97,142.89,21.06]
[1720009289401,6.1964,142.97,142.9,41.4]
[1720009289609,6.1964,142.97,142.9,21.06]
[1720009289832,6.2904,143.01,142.91,0.34]
[1720009290123,15.8677711,143.03,142.93,21.06]
[1720009290311,15.8677711,143.03,142.94,41.4]
[1720009291000,15.8677711,143.03,142.94,171.4]
[1720009292400,15.8677711,143.03,142.94,41.4]
[1720009293656,15.8677711,143.03,142.94,20.17]
[1720009293935,15.8677711,143.03,142.94,0.17]
[1720009294305,15.8677711,143.03,142.93,0.17]
[1720009294834,15.8677711,143.03,142.93,21.4]
[1720009295409,15.8677711,143.03,142.95,21.06]
[1720009295624,15.8677711,143.03,142.97,21.06]
[1720009295832,15.8677711,143.03,142.98,20.34]
[1720009296164,0.8123711,143.03,142.98,20.34]
[1720009296839,0.8123711,143.03,142.98,0.34]
[1720009297131,0.8123711,143.03,142.98,20.34]
[1720009297616,0.8123711,143.03,142.98,0.34]
[1720009297805,0.8123711,143.03,142.97,20.0]
[1720009297806,0.8123711,143.03,142.91,5.09938192]
[1720009298006,0.8123711,143.03,142.92,30.0]
[1720009298214,0.8123711,143.03,142.9,21.06]
[1720009299108,19.46386761,142.87,142.68,34.84479513]
[1720009299302,35.48263555,143.0,142.58,6.5669]
[1720009299303,37.11,142.81,142.78,19.4589]
[1720009299502,33.15284521,142.8,142.66,0.11419077]
[1720009299709,3.4047,142.78,142.62,42.86403475]
[1720009299934,37.11,142.76,142.62,42.86403475]
[1720009300131,38.80018931,142.75,142.61,7.69506663]
[1720009300341,20.26269414,142.74,142.65,100.0]
[1720009300552,3.4047,142.78,142.63,100.0]
[1720009300721,23.4047,142.78,142.61,200.0]
[1720009301054,37.11,142.77,142.61,107.98989995]
[1720009301222,20.0,142.76,142.62,6.45074185]
[1720009301947,20.0,142.76,142.61,229.04989995]
[1720009302433,23.4047,142.78,142.61,29.04989995]
[1720009302643,37.11,142.76,142.61,29.04989995]
[1720009302825,20.0,142.75,142.62,20.0]
[1720009303021,37.11,142.76,142.62,20.0]
[1720009303331,20.0,142.75,142.62,20.0]
[1720009304328,20.0,142.75,142.61,123.75089915]
[1720009304938,37.11,142.77,142.61,123.75089915]
[1720009305149,20.0,142.76,142.62,0.34]
[1720009305636,20.0,142.76,142.61,2.69089915]
[1720009306022,37.11,142.74,142.61,2.69089915]
[1720009306224,0.34,142.77,142.61,123.75089915]
[1720009306435,0.17,142.76,142.61,2.69089915]
[1720009306634,0.34,142.76,142.61,2.69089915]
[1720009306821,23.4047,142.78,142.62,100.17]
[1720009307031,37.11,142.77,142.63,0.17]
[1720009307242,20.0,142.76,142.62,0.34]
[1720009307961,20.0,142.76,142.62,0.17]
[1720009308126,0.17,142.75,142.62,0.17]
[1720009308528,37.11,142.74,142.62,0.17]
[1720009309331,37.11,142.74,142.62,0.34]
[1720009309534,37.11,142.74,142.62,21.4]
[1720009310448,20.0,142.76,142.62,21.4]
[1720009310639,37.11,142.76,142.62,21.4]
[1720009310945,20.0,142.75,142.62,21.4]
[1720009312653,20.0,142.75,142.62,0.34]
[1720009313026,20.0,142.75,142.6,1.18816484]
[1720009313232,0.17,142.74,142.59,100.0]
[1720009314340,20.0,142.75,142.59,121.06]
[1720009315155,20.0,142.75,142.6,0.34]
[1720009316640,20.0,142.75,142.6,121.4]
[1720009316967,20.0,142.75,142.6,21.4]
[1720009317261,20.0,142.75,142.6,121.4]
[1720009317442,20.0,142.75,142.6,21.4]
[1720009319768,23.4047,142.78,142.6,21.4]
[1720009319964,0.34,142.77,142.6,21.4]
[1720009320745,0.34,142.77,142.61,221.06]
[1720009320954,0.34,142.77,142.62,0.34]
[1720009321356,0.17,142.77,142.62,0.34]
[1720009321755,24.3999747,142.78,142.62,0.34]
[1720009322164,24.3999747,142.78,142.63,100.0]
[1720009322368,4.3999747,142.78,142.65,221.06]
[1720009322576,3.4047,142.78,142.66,1.18793661]
[1720009323870,3.4047,142.78,142.66,0.34]
[1720009324268,3.4047,142.78,142.68,21.06]
[1720009324442,15.8307,142.79,142.69,0.34]
[1720009324647,3.4047,142.83,142.69,0.34]
[1720009324859,23.4047,142.83,142.69,0.34]
[1720009325247,3.4047,142.83,142.7,0.95676956]
[1720009325445,3.4047,142.83,142.71,1.32864322]
[1720009325661,3.4047,142.83,142.72,21.06]
[1720009325863,3.4047,142.83,142.73,0.17]
[1720009329259,3.4047,142.83,142.73,0.34]
[1720009329461,0.11419077,142.82,142.73,0.34]
[1720009331965,0.11419077,142.82,142.73,0.17]
[1720009337984,0.11419077,142.82,142.69,26.3434442]
[1720009338157,3.4047,142.81,142.65,612.6045711]
[1720009338357,37.56419077,142.8,142.65,605.5765711]
[1720009338768,20.0,142.79,142.65,602.0639711]
[1720009338963,0.45419077,142.78,142.65,602.0639711]
[1720009339170,37.11,142.76,142.65,602.0639711]
[1720009339370,20.28419077,142.75,142.65,607.32600369]
[1720009339579,0.11419077,142.75,142.64,6.6062]
[1720009339966,0.11419077,142.75,142.64,27.6662]
[1720009341785,0.11419077,142.75,142.65,0.34]
[1720009344486,0.11419077,142.75,142.65,0.17]
[1720009345381,15.0015,142.74,142.63,5.32992305]
[1720009345568,0.11419077,142.73,142.62,16.1323]
[1720009346228,0.11419077,142.73,142.62,21.44311765]
[1720009346367,0.11419077,142.73,142.62,42.50311765]
[1720009347064,0.11419077,142.73,142.62,21.44311765]
[1720009347877,0.11419077,142.73,142.62,42.50311765]
[1720009348178,6.09114404,142.72,142.53,215.5795711]
[1720009348380,0.28419077,142.71,142.54,21.06]
[1720009348567,0.17,142.7,142.54,21.06]
[1720009349287,0.11419077,142.69,142.54,21.06]
[1720009349487,0.11419077,142.69,142.56,21.06]
[1720009349667,0.11419077,142.69,142.57,0.17]
[1720009350793,0.11419077,142.69,142.6,0.17]
[1720009351700,0.11419077,142.69,142.57,0.17]
[1720009351701,0.11419077,142.69,142.56,27.6075]
[1720009352599,0.11419077,142.69,142.58,21.06]
[1720009352989,0.11419077,142.69,142.59,0.34]
[1720009354917,0.11419077,142.69,142.61,100.0]
[1720009355100,0.11419077,142.69,142.62,21.4]
[1720009357113,0.11419077,142.69,142.62,121.4]
[1720009357616,0.11419077,142.69,142.62,21.4]
[1720009358901,0.11419077,142.69,142.62,21.06]
[1720009360212,0.11419077,142.69,142.6,21.06]
[1720009361112,6.5815,142.68,142.59,4.104171]
[1720009361418,0.11419077,142.67,142.6,21.06]
[1720009362597,0.11419077,142.67,142.61,0.34]
[1720009363007,0.11419077,142.67,142.62,21.06]
[1720009363316,0.11419077,142.67,142.63,0.17]
[1720009365305,0.11419077,142.67,142.63,0.34]
[1720009365709,0.11419077,142.67,142.63,0.17]
[1720009366612,0.11419077,142.67,142.64,21.06]
[1720009366815,21.5275,142.74,142.65,0.34]
[1720009367413,6.526,142.74,142.67,21.06]
[1720009367720,15.5033,142.78,142.68,0.34]
[1720009368603,15.5033,142.78,142.69,21.06]
[1720009368919,6.5621,142.79,142.71,21.06]
[1720009369120,6.5621,142.79,142.72,0.17]
[1720009369309,6.5621,142.79,142.72,0.34]
[1720009369616,15.6216,142.82,142.72,0.34]
[1720009369617,21.9317,142.82,142.72,0.34]
[1720009369816,21.9317,142.82,142.73,21.06]
[1720009370023,21.9317,142.82,142.74,0.34]
[1720009372525,21.9317,142.82,142.74,0.17]
[1720009372704,21.9317,142.82,142.71,21.06]
[1720009373201,21.9317,142.82,142.72,21.06]
[1720009373824,21.9317,142.82,142.73,0.17]
[1720009374128,21.9317,142.82,142.73,0.34]
[1720009380111,6.5956,142.8,142.65,602.0639711]
[1720009380309,6.2328,142.78,142.65,4.12259391]
[1720009380515,6.2328,142.78,142.63,200.0]
[1720009381039,6.2328,142.78,142.64,21.06]
[1720009381340,6.2328,142.78,142.65,21.06]
[1720009382537,6.2328,142.78,142.68,21.06]
[1720009383027,6.2328,142.78,142.69,0.17]
[1720009384613,6.2328,142.78,142.69,0.97336565]
[1720009384930,6.2328,142.78,142.7,0.17]
[1720009385120,6.2328,142.78,142.71,0.80325306]
[1720009385433,6.2328,142.78,142.72,0.34]
[1720009386511,6.2328,142.78,142.71,0.34]
[1720009389947,6.2328,142.78,142.72,21.06]
[1720009390121,6.2328,142.78,142.73,0.34]
[1720009390320,120.0,142.97,142.73,0.34]
[1720009390321,6.641,142.82,142.73,0.34]
[1720009392740,6.641,142.82,142.74,0.17]
[1720009393229,6.641,142.82,142.72,0.34]
[1720009396536,39.681,142.82,142.7,25.26133296]
[1720009396742,39.681,142.82,142.7,4.20133296]
[1720009396939,39.681,142.82,142.68,33.04]
[1720009397647,39.681,142.82,142.69,21.06]
[1720009397831,39.681,142.82,142.69,121.06]
[1720009398235,39.681,142.82,142.7,0.17]
[1720009398439,6.641,142.82,142.7,0.17]
[1720009398950,6.641,142.82,142.72,21.06]
[1720009399124,6.641,142.82,142.73,0.34]
[1720009399326,6.641,142.82,142.74,54.1]
[1720009399532,6.641,142.82,142.75,0.34]
[1720009404656,6.641,142.82,142.75,0.17]
[1720009406066,6.641,142.82,142.74,0.17]
[1720009406263,6.641,142.82,142.74,0.34]
[1720009410867,6.641,142.82,142.75,21.06]
[1720009411051,6.641,142.82,142.77,21.06]
[1720009411244,6.641,142.82,142.78,0.34]
[1720009415651,6.641,142.82,142.78,4.64783357]
[1720009415849,15.1157,142.83,142.78,25.70783357]
[1720009416055,23.85476659,142.86,142.78,25.70783357]
[1720009416560,16.5932,142.86,142.78,25.70783357]
[1720009418962,20.8353,142.86,142.78,25.70783357]
[1720009419164,11.6503,142.86,142.8,21.06]
[1720009419350,7.73160217,142.89,142.82,54.1]
[1720009419550,7.73160217,142.89,142.83,0.34]
[1720009419872,0.4706,142.89,142.83,0.34]
[1720009421287,4.2421,142.9,142.83,0.34]
[1720009421458,7.25965273,142.93,142.85,54.1]
[1720009421662,7.25965273,142.93,142.86,0.34]
[1720009421864,4.2421,142.94,142.86,0.34]
[1720009422062,11.2383,142.94,142.86,0.34]
[1720009422266,1.4441,142.93,142.86,0.34]
[1720009423688,4.2421,142.94,142.86,0.34]
[1720009424362,4.2421,142.94,142.87,21.06]
[1720009424572,4.2421,142.94,142.88,0.34]
[1720009424873,1.4441,142.95,142.88,0.34]
[1720009425574,4.2421,142.97,142.88,0.34]
[1720009427583,11.2367,142.97,142.88,0.34]
[1720009427882,4.2421,142.97,142.88,0.34]
[1720009428377,4.2421,142.97,142.88,33.38]
[1720009428560,4.2421,142.97,142.89,21.06]
[1720009428760,4.2421,142.97,142.9,0.34]
[1720009429880,1.4441,142.99,142.9,0.34]
[1720009430959,0.8123711,143.03,142.94,121.06]
[1720009431290,0.8123711,143.03,142.95,0.34]
[1720009431456,0.8123711,143.03,142.96,54.1]
[1720009431661,0.8123711,143.03,142.97,0.34]
[1720009432364,4.2421,143.02,142.97,0.17]
[1720009432568,8.4366,143.01,142.93,33.04]
[1720009432762,8.4366,143.01,142.94,0.34]
[1720009433359,1.4441,143.01,142.94,0.34]
[1720009436482,4.2421,143.02,142.94,0.34]
[1720009436663,4.2421,143.02,142.93,0.34]
[1720009439685,0.8123711,143.03,142.94,21.06]
[1720009439876,0.8123711,143.03,142.95,0.34]
[1720009440275,0.8123711,143.03,142.95,0.17]
[1720009440591,0.8123711,143.03,142.92,21.06]
[1720009440761,0.8123711,143.03,142.94,21.06]
[1720009440960,0.8123711,143.03,142.96,21.06]
[1720009441165,0.8123711,143.03,142.97,54.1]
[1720009441365,0.8123711,143.03,142.97,33.04]
[1720009441786,0.8123711,143.03,142.98,0.34]
[1720009444182,1.4441,143.09,142.98,0.34]
[1720009445490,8.4327,143.09,142.98,0.34]
[1720009445803,4.2421,143.1,143.01,21.06]
[1720009445976,4.2421,143.16,143.03,43.2783]
[1720009446174,4.2421,143.16,143.04,0.34]
[1720009446705,6.9858,143.15,143.04,0.34]
[1720009447104,6.9861,143.14,143.04,0.34]
[1720009447280,6.9863,143.14,143.04,0.34]
[1720009448180,6.9858,143.15,143.04,0.34]
[1720009448700,11.2274,143.16,143.04,0.34]
[1720009448907,4.2421,143.16,143.04,0.34]
[1720009449102,11.2276,143.16,143.06,21.06]
[1720009449281,6.9864,143.14,143.07,0.34]
[1720009449479,6.9862,143.14,143.07,0.34]
[1720009449894,6.9857,143.15,143.07,0.34]
[1720009450094,6.9862,143.14,143.07,0.34]
[1720009450388,4.2421,143.16,143.07,0.34]
[1720009450597,24.2421,143.16,143.04,4.31376596]
[1720009450799,24.2421,143.16,143.03,55.2583]
[1720009450800,6.9895,143.08,142.99,22.358]
[1720009451000,6.986,143.15,143.03,55.65]
[1720009451379,4.2421,143.16,143.04,21.06]
[1720009451810,0.8123711,143.17,143.04,21.06]
[1720009452003,0.8123711,143.17,143.03,155.65]
[1720009452004,7.7972711,143.17,143.06,54.1]
[1720009452210,0.8123711,143.17,143.06,54.1]
[1720009452412,0.8123711,143.17,143.09,33.04]
[1720009452582,0.8123711,143.17,143.1,0.17]
[1720009452910,0.8123711,143.17,143.1,0.34]
[1720009454000,7.7970711,143.17,143.1,0.34]
[1720009454203,7.7970711,143.17,143.11,0.17]
[1720009454496,0.8123711,143.17,143.09,0.34]
[1720009456376,0.8123711,143.17,143.1,21.06]
[1720009456578,0.8123711,143.17,143.11,0.34]
[1720009456817,6.9829,143.21,143.11,0.34]
[1720009456993,6.9826,143.22,143.12,54.1]
[1720009457303,6.9853,143.16,143.08,26.64799548]
[1720009457503,33.04,143.22,143.08,26.64799548]
[1720009457703,6.9857,143.15,143.08,26.64799548]
[1720009457905,6.9861,143.14,143.08,22.2753]
[1720009458214,6.9857,143.15,143.08,22.2753]
[1720009458707,4.2421,143.18,143.08,22.2753]
[1720009458882,6.9853,143.16,143.08,22.2753]
[1720009459082,33.04,143.29,143.08,22.2753]
[1720009459083,1.4441,143.21,143.08,22.2753]
[1720009459305,6.9834,143.2,143.08,43.3353]
[1720009459610,6.9837,143.19,143.08,43.3353]
[1720009460006,6.9842,143.18,143.08,43.3353]
[1720009460307,6.9838,143.19,143.09,33.38]
[1720009461296,6.9842,143.18,143.09,33.38]
[1720009461504,6.9839,143.19,143.09,33.38]
[1720009461711,6.9842,143.18,143.09,33.38]
[1720009462008,6.9842,143.18,143.09,0.34]
[1720009462204,1.4441,143.21,143.09,0.34]
[1720009462383,1.4441,143.21,143.09,0.17]
[1720009462384,6.9851,143.17,143.09,0.17]
[1720009462784,6.9851,143.16,143.09,0.17]
[1720009463208,6.9848,143.17,143.09,0.17]
[1720009463504,4.2421,143.15,143.05,16.2782]
[1720009463707,33.04,143.13,143.02,16.2782]
[1720009463915,6.9896,143.07,143.02,16.2782]
[1720009464106,6.9892,143.08,143.02,16.2782]
[1720009464289,6.9887,143.09,143.02,16.2782]
[1720009464497,33.04,143.13,143.02,16.2782]
[1720009464689,1.7841,143.14,142.98,33.04]
[1720009464690,33.04,143.1,142.98,16.4841]
[1720009464893,6.9896,143.07,142.98,16.4841]
[1720009465413,6.9895,143.07,142.98,16.4841]
[1720009465712,6.9901,143.06,142.98,16.4841]
[1720009466211,20.17,143.12,142.98,16.4841]
[1720009466414,0.17,143.11,142.98,16.4841]
[1720009467007,0.34,143.12,142.98,16.4841]
[1720009467207,0.34,143.12,142.99,0.34]
[1720009467908,0.17,143.12,142.99,0.34]
[1720009468423,1.4441,143.14,142.99,0.34]
[1720009468593,1.4441,143.14,143.0,21.06]
[1720009468915,1.4441,143.14,143.02,6.4734]
[1720009469107,1.4441,143.14,143.03,0.34]
[1720009469496,4.2421,143.15,143.03,0.34]
[1720009469706,1.4441,143.18,143.04,16.2583]
[1720009469902,1.4441,143.18,143.05,0.34]
[1720009470701,4.2421,143.19,143.05,0.34]
[1720009471096,1.4441,143.21,143.06,6.2859]
[1720009471406,1.4441,143.21,143.07,0.34]
[1720009471814,1.4441,143.21,143.06,6.4559]
[1720009471999,0.9441,143.21,143.07,0.17]
[1720009472197,0.17,143.2,143.06,6.2859]
[1720009472524,0.34,143.2,143.06,6.2859]
[1720009474018,0.34,143.2,143.07,0.17]
[1720009474197,0.34,143.2,143.07,0.34]
[1720009474401,20.9441,143.21,143.07,0.34]
[1720009475922,0.34,143.2,143.07,0.34]
[1720009476798,0.34,143.2,143.07,0.17]
[1720009477198,0.34,143.2,143.07,0.34]
[1720009477914,0.17,143.2,143.07,0.34]
[1720009478326,0.17,143.2,143.08,16.6583]
[1720009478501,0.17,143.2,143.09,0.34]
[1720009479013,0.17,143.2,143.09,0.17]
[1720009479193,0.34,143.2,143.09,0.17]
[1720009479817,0.34,143.2,143.08,16.6583]
[1720009481320,0.34,143.2,143.09,0.17]
[1720009481699,0.34,143.2,143.09,0.34]
[1720009481913,20.0,143.21,143.08,16.6583]
[1720009482107,20.9441,143.24,143.08,16.6583]
[1720009482312,45.9441,143.24,143.08,16.6583]
[1720009483204,0.34,143.23,143.08,16.6583]
[1720009484599,20.9441,143.24,143.09,6.346]
[1720009484910,20.9441,143.24,143.1,0.17]
[1720009484911,57.9941,143.24,143.1,0.17]
[1720009485826,4.47027649,143.27,143.11,43.2714]
[1720009486042,32.89,143.25,143.12,0.34]
[1720009486215,32.89,143.26,143.13,21.6153]
[1720009486414,32.89,143.26,143.14,0.17]
[1720009486722,32.89,143.26,143.14,0.34]
[1720009486924,32.89,143.26,143.15,0.53234498]
[1720009487128,32.89,143.26,143.14,0.34]
[1720009487720,20.0,143.25,143.14,0.34]
[1720009488113,20.0,143.25,143.15,15.1021]
[1720009488313,0.8123711,143.32,143.17,21.481]
[1720009488523,32.89,143.29,143.17,21.481]
[1720009488723,32.89,143.29,143.18,0.34]
[1720009489521,32.89,143.29,143.17,21.481]
[1720009489714,32.89,143.27,143.17,21.481]
[1720009490531,32.89,143.22,143.17,21.481]
[1720009493116,0.34,143.21,143.17,21.481]
[1720009495236,0.34,143.21,143.07,22.2006]
[1720009496327,0.34,143.21,143.08,22.6481]
[1720009497136,0.34,143.21,143.09,0.17]
[1720009497334,0.17,143.21,143.1,22.5573]
[1720009498037,20.0,143.25,143.1,22.5573]
[1720009498229,20.0,143.25,143.11,0.34]
[1720009498425,20.0,143.25,143.11,0.17]
[1720009499420,0.17,143.24,143.11,0.17]
[1720009499615,0.34,143.24,143.1,22.5573]
[1720009507017,36.99,143.26,143.12,21.6431]
[1720009507323,36.99,143.3,143.15,6.6466]
[1720009507720,36.99,143.3,143.16,15.3836]
[1720009508126,0.8123711,143.32,143.18,22.0302]
[1720009508418,0.8123711,143.32,143.19,22.01]
[1720009508632,0.8123711,143.32,143.2,15.395]
[1720009508941,0.8123711,143.32,143.21,6.615]
[1720009509645,0.8123711,143.32,143.22,15.395]
[1720009510216,0.8123711,143.32,143.24,15.3039]
[1720009513351,0.8123711,143.32,143.25,6.2962]
[1720009515852,33.6423711,143.32,143.25,6.2962]
[1720009516046,0.34,143.31,143.25,6.2962]
[1720009521163,0.8123711,143.32,143.25,6.2962]
[1720009521459,0.8123711,143.32,143.19,25.55593214]
[1720009521460,32.83,143.37,143.27,6.1122]
[1720009521636,25.0,143.41,143.27,6.1122]
[1720009521829,32.83,143.35,143.27,6.1122]
[1720009523545,0.17,143.34,143.27,6.1122]
[1720009525045,20.34,143.34,143.27,6.1122]
[1720009526553,32.83,143.32,143.27,6.1122]
[1720009526746,0.17,143.31,143.27,6.1122]
[1720009527859,32.83,143.32,143.27,6.1122]
[1720009528040,0.17,143.33,143.27,6.1122]
[1720009528249,0.34,143.33,143.27,6.1122]
[1720009528639,0.17,143.33,143.27,6.1122]
[1720009528839,0.34,143.34,143.27,6.1122]
[1720009529935,32.83,143.3,143.27,6.1122]
[1720009530136,0.17,143.29,143.26,15.0863]
[1720009530434,0.34,143.29,143.26,15.0863]
[1720009530868,0.17,143.29,143.26,15.0863]
[1720009532065,32.83,143.3,143.26,15.0863]
[1720009532262,32.83,143.33,143.26,15.0863]
[1720009532436,20.0,143.32,143.26,15.0863]
[1720009533360,20.0,143.32,143.27,6.4087]
[1720009533575,5.9983,143.4,143.27,6.4087]
[1720009533897,32.83,143.36,143.27,6.4087]
[1720009534384,1.7562,143.4,143.27,6.4087]
[1720009534680,62.0721,143.43,143.27,6.4087]
[1720009534873,32.83,143.36,143.27,6.4087]
[1720009535381,0.34,143.35,143.27,6.4087]
[1720009535563,20.34,143.35,143.27,6.4087]
[1720009536267,32.83,143.33,143.27,6.4087]
[1720009536472,0.17,143.32,143.27,6.4087]
[1720009537276,0.34,143.32,143.27,6.4087]
[1720009538081,20.34,143.32,143.27,6.4087]
[1720009539481,32.83,143.3,143.27,6.4087]
[1720009539676,0.17,143.29,143.27,6.4087]
[1720009542584,0.17,143.29,143.26,15.0863]
[1720009542768,20.34,143.29,143.26,15.0863]
[1720009547766,53.17,143.29,143.26,15.0863]